[Event "Lliga Catalana DH 2023"]
[Site "Catalonia"]
[Date "2023.04.15"]
[Round "11.2"]
[White "Munoz, Miguel"]
[Black "Alonso Bouza, Julio Javier"]
[Result "1/2-1/2"]
[ECO "B07"]
[WhiteElo "2356"]
[BlackElo "2384"]
[Annotator "TA"]
[PlyCount "36"]
[EventDate "2023.01.24"]
[EventType "team-tourn"]
[EventCountry "ESP"]
[SourceTitle "playchess.com"]
[Source "ChessBase"]
[SourceQuality "1"]
[TimeControl "40/5400+30:1800+30"]

{[%evp 10,36,39,39,40,36,33,33,37,7,40,21,32,9,19,-14,-38,-37,0,-43,-44,-44,-45,-42,0,0,0,0,0]} 1. e4 d6 2. d4 Nf6 3. Nc3 g6 4. Bg5 c6 5. Qd2 Nbd7 6. f4 d5 {B07: Pirc Defence: Miscellaneous Systems.} 7. e5 Ne4 8. Nxe4 dxe4 {White is slightly better.} 9. Ne2 (9. Nh3 $5) 9... f6 10. Bh4 Bh6 {[#]} 11. exf6 $146 (11. Nc3 $5 {[%cal Rc3e4]}) ({Predecessor:} 11. Nc3 fxe5 12. dxe5 O-O 13. Bc4+ Kh8 14. Rf1 Qb6 15. Na4 e3 16. Qc3 Qd8 17. O-O-O {1-0 Ismagambetov,A (2554)-Vakhidov,J (2554) Tashkent zt 3.4 2019 (5)}) 11... Nxf6 12. Nc3 Nd5 13. Nxd5 cxd5 14. Be2 O-O 15. O-O Qc7 {[%cal Rf8f4]} 16. Bg5 Bxg5 17. fxg5 Be6 18. Rxf8+ Rxf8 {Weighted Error Value: White=0.11 (very precise) /Black=0.09 (flawless)} 1/2-1/2

[Event "Lliga Catalana DH 2023"]
[Site "Catalonia"]
[Date "2023.04.15"]
[Round "11.3"]
[White "Ayats Llobera, Gerard"]
[Black "Diaz Camallonga, Carles"]
[Result "1/2-1/2"]
[ECO "C18"]
[WhiteElo "2449"]
[BlackElo "2472"]
[Annotator "TA"]
[PlyCount "113"]
[EventDate "2023.01.24"]
[EventType "team-tourn"]
[EventCountry "ESP"]
[SourceTitle "playchess.com"]
[Source "ChessBase"]
[SourceQuality "1"]
[TimeControl "40/5400+30:1800+30"]

{[%evp 15,113,48,53,54,116,33,56,0,101,74,78,68,109,106,130,129,126,149,138,120,125,134,133,119,146,132,120,39,82,98,191,163,187,139,204,213,248,204,213,200,568,542,558,545,1198,1184,1150,1117,984,600,1050,958,912,565,558,558,558,508,534,412,412,412,445,336,320,299,306,0,299,299,293,287,284,37,119,37,37,37,37,37,37,37,48,48,48,56,154,48,48,48,48,42,33,29,48,48,48,48,48,47]} 1. e4 {[%emt 0:00:03]} e6 {[%emt 0:00:08]} 2. d4 {[%emt 0:00:03]} d5 {[%emt 0:00:05]} 3. Nc3 {[%emt 0:00:03]} Bb4 {[%emt 0:00:11]} 4. e5 {[%emt 0:00:05]} c5 {[%emt 0:00:21]} 5. a3 {[%emt 0:00:04]} Bxc3+ {[%emt 0:00:05]} 6. bxc3 {[%emt 0:00:03]} Qc7 {[%emt 0:00:12]} 7. Qg4 {[%emt 0:00:53]} f6 {[%emt 0:00:06] Nowadays more popular than 7...f5.} 8. Bb5+ {[%emt 0:00:22]} Kf8 {[%emt 0:00:21] Black is weak on the dark squares} 9. Qg3 $1 {[%emt 0:08:39] [#] C18: French: 3 Nc3 Bb4: Main line: 7 h4 and 7 Qg4.} fxe5 $146 {[%emt 0:23:54]} (9... cxd4 $14 10. exf6 Qxc3+ 11. Qxc3 dxc3) ({Predecessor:} 9... cxd4 10. exf6 Qxg3 11. hxg3 gxf6 12. cxd4 Bd7 13. Bd3 Kg7 14. Ne2 Nc6 15. f3 Nge7 16. Bh6+ Kf7 {½-½ Overas,A-Hatlebakk,E NOR corr Norway 1985}) 10. dxe5 {[%emt 0:04:44]} (10. Nf3 $1 $16 {[%cal Rf3e5]}) 10... Qf7 {[%emt 0:22:43]} 11. Nf3 {[%emt 0:17:06]} (11. a4 $14) 11... h6 {[%emt 0:07:56]} (11... c4 $1 $11) 12. a4 {[%emt 0:02:53]} Ne7 {[%emt 0:01:57]} 13. O-O {[%emt 0:08:04]} (13. Ba3 $5 {[%cal Ra3c5]}) 13... Bd7 {[%emt 0:04:26]} 14. c4 {[%emt 0:02:02]} Nbc6 {[%emt 0:11:59]} 15. cxd5 {[%emt 0:10:02]} Nxd5 {[%emt 0:00:40]} 16. Be3 {[%emt 0:11:44]} b6 {[%emt 0:01:02]} 17. c4 {[%emt 0:00:17]} Nde7 {[%emt 0:03:47] [#]} 18. a5 $1 {[%emt 0:09:55][%mdl 512]} Rb8 {[%emt 0:06:14]} 19. axb6 {[%emt 0:00:29]} axb6 {[%emt 0:00:03]} 20. Rfd1 {[%emt 0:01:10]} Be8 {[%emt 0:01:32]} 21. Qh4 {[%emt 0:03:04]} (21. h3 $16) 21... Kg8 {[%emt 0:01:21]} 22. h3 $36 {[%emt 0:02:14][%mdl 2048] White has strong initiative. White has more active pieces. The black rooks are badly placed.} Nf5 {[%emt 0:08:21]} (22... Qf5 $16) 23. Qe4 $1 $18 {[%emt 0:00:51]} Qc7 {[%emt 0:01:29]} 24. Rd2 {[%emt 0:02:18]} (24. g4 $18 Nfe7 25. Rd6) 24... Na5 {[%emt 0:00:36]} (24... Nce7 $16 {was called for.} 25. Bxe8 Rxe8) 25. Rad1 {[%emt 0:05:37]} Bc6 {[%emt 0:01:12]} 26. Bxc6 {[%emt 0:00:58]} Qxc6 {[%emt 0:00:07] [#]} 27. Qg4 {[%emt 0:00:14]} ({Stronger than} 27. Rd8+ Rxd8 28. Rxd8+ Kh7 29. Rxh8+ Kxh8 $11) 27... Rf8 $2 {[%emt 0:01:37]} (27... Qe8 {is a better chance.} 28. Nh4 Nxh4) 28. Nh4 {[%emt 0:04:19]} Nxh4 {[%emt 0:01:12]} 29. Qxh4 {[%emt 0:00:01]} Qa4 {[%emt 0:00:46]} 30. Rd7 {[%emt 0:03:12]} Rf7 {[%emt 0:00:31]} 31. Rd8+ {[%emt 0:00:05]} Kh7 {[%emt 0:00:17]} 32. Qe4+ {[%emt 0:01:41]} g6 {[%emt 0:00:26]} 33. Qh4 {[%emt 0:00:13][%csl Ge3][%cal Rh4h6]} Kg7 {[%emt 0:00:50] [#]} 34. Bg5 $3 {[%emt 0:02:53][%mdl 576] Bf6+ would kill now. Pin} Qxd1+ 35. Rxd1 {[%emt 0:00:01] Intending Bf6+ and mate.} hxg5 {[%emt 0:00:29]} 36. Qxg5 {[%emt 0:00:17]} Rh5 {[%emt 0:00:28]} 37. Qd8 {[%emt 0:00:56]} Nxc4 {[%emt 0:00:23]} 38. Qe8 {[%emt 0:01:05]} Nxe5 {[%emt 0:01:02]} 39. Qxe6 {[%emt 0:00:32] Hoping for Rd8.} Rf6 {[%emt 0:00:33]} 40. Qe8 {[%emt 0:00:28]} Rf8 {[%emt 0:00:22] Wards off Rd8} 41. Qe6 {[%emt 0:30:30]} Rf6 {[%emt 0:30:04]} 42. Qc8 {[%emt 0:00:23] Rd8 is the strong threat.} Nf7 {[%emt 0:00:14] Prevents Rd8} 43. Ra1 {[%emt 0:00:49]} Rd5 {[%emt 0:00:04]} 44. Ra8 $2 {[%emt 0:00:33]} (44. f3 $18) 44... Rd1+ $1 $14 {[%emt 0:00:05]} 45. Kh2 {[%emt 0:00:01] Black must now prevent Qf8+.} Rd8 {[%emt 0:00:07] Inhibits Qf8+.} ({Not} 45... Rxf2 46. Qf8+ Kh7 47. Ra7 $16) 46. Qb7 {[%emt 0:00:15]} Rxa8 {[%emt 0:00:03]} 47. Qxa8 {[%emt 0:00:03] aiming for f3.} Rxf2 {[%emt 0:00:08][%mdl 4096] Endgame KQ-KRN} 48. Qa1+ {[%emt 0:00:13]} Rf6 {[%emt 0:01:03]} 49. h4 {[%emt 0:00:23][%mdl 1024] White has compensation.} Nh6 $1 {[%emt 0:00:58]} 50. Kh3 {[%emt 0:00:33] And now g4 would win.} Nf5 {[%emt 0:00:26] [#]} (50... Kf7 $14) 51. Qa7+ {[%emt 0:00:26]} ({Don't play} 51. Qe5 Nd6 $16) ({White must play} 51. g4 $1 $16 {[%cal Rg4g5]} Nd4 52. Qa7+ Kg8 53. Qb8+ Kf7 54. Qb7+ Kf8 55. Qc8+ Ke7 56. Qc7+ Kf8 57. Qd8+ Kf7 58. Qd7+ Kf8 59. Qd8+ Kf7 60. Qd7+ Kf8 61. g5) 51... Kf8 $1 {[%emt 0:00:23]} 52. Qb8+ {[%emt 0:00:33]} Kf7 {[%emt 0:00:15]} 53. Qc7+ {[%emt 0:00:15]} Ne7 {[%emt 0:00:08]} 54. g4 {[%emt 0:00:31]} Rc6 {[%emt 0:00:12]} 55. Qf4+ {[%emt 0:00:09] White is slightly better.} Rf6 {[%emt 0:00:31]} 56. Qc4+ {[%emt 0:00:27]} Kf8 {[%emt 0:00:14]} 57. Kg3 {[%emt 0:01:42] Black defended with fortune. An exciting game.   Weighted Error Value: White=0.59/Black=0.27 (precise)} 1/2-1/2

[Event "Lliga Catalana DH 2023"]
[Site "Catalonia"]
[Date "2023.04.15"]
[Round "11.3"]
[White "Alonso Garcia, Rene Marcial"]
[Black "Radovanovic, Nikola"]
[Result "0-1"]
[ECO "E99"]
[WhiteElo "2325"]
[BlackElo "2407"]
[Annotator "TA"]
[PlyCount "78"]
[EventDate "2023.01.24"]
[EventType "team-tourn"]
[EventCountry "ESP"]
[SourceTitle "playchess.com"]
[Source "ChessBase"]
[SourceQuality "1"]
[TimeControl "40/5400+30:1800+30"]

{[%evp 23,78,58,60,57,65,47,73,43,58,48,50,45,48,34,41,47,57,27,20,-3,0,-19,-27,-55,-43,-75,-54,-75,-82,-95,-76,-76,-87,-134,-133,-146,-113,-132,-119,-187,-83,-73,-82,-255,-240,-328,-297,-378,-378,-806,-799,-777,-754,-5810,-819,-5718,-5139]} 1. d4 Nf6 2. c4 g6 3. Nc3 Bg7 4. e4 d6 5. Nf3 {[%cal Bg1f3,Bf3e1,Be1d3,Bd3f2][%mdl 32]} O-O 6. Be2 e5 7. O-O Nc6 8. d5 Ne7 9. Ne1 Nd7 10. Nd3 f5 11. f3 f4 12. b4 g5 13. c5 {E99: King's Indian: Classical Main Line: 9 Ne1 Nd7 10 f3 f5.} Nf6 14. a4 {[%cal Ba2a4,Ba4a5][%mdl 32]} h5 15. Nf2 {White is better.} Ng6 16. a5 Rf7 17. Kh1 Bf8 18. c6 {[#]} Rh7 $146 ({Predecessor:} 18... bxc6 19. dxc6 Be6 20. b5 Ne7 21. Rg1 Rg7 22. g3 Qe8 23. Qf1 a6 24. gxf4 gxf4 {1-0 Firouzja,A (2682)-Aryan,C (2553) Asian Continental op 18th 2019 (9)}) 19. cxb7 Bxb7 20. Bd2 Bc8 $1 {[%cal Og5g4]} 21. Kg1 Rg7 {[%cal Og5g4]} 22. h3 Nh8 {[%cal Bg6h8,Bh8f7,Bf7h6][%mdl 32]} 23. Qc2 a6 24. Ra3 {[#]} Nf7 $1 25. Rc1 g4 26. hxg4 hxg4 27. fxg4 Nh6 28. g5 Rxg5 $17 29. Ncd1 {[#]} Rg7 30. Rc3 {[%cal Rc3c7]} Ra7 31. Kf1 (31. Ne3 $17 {was necessary.}) 31... Nfg4 (31... Qe8 $19 32. Bf3 Bd7) 32. Nxg4 Nxg4 33. Bxg4 {This move loses the game for White.} (33. Rh3 $17 {only move.}) 33... Bxg4 $19 34. Be1 {Inhibits Qh4.} Qg5 {Threatens to win with ...Qh5.} 35. Qf2 Rh7 {...Rh1+ is the strong threat.} 36. Qxa7 $2 (36. Qg1) 36... Rh1+ {[%mdl 64] Skewer. Black is clearly winning.} 37. Qg1 Qh5 {[%cal Og4d1]} ({And not} 37... Rxg1+ 38. Kxg1 Bh5 39. Rh3 $11 (39. Rxc7 $2 {too greedy.} Bf3 $19)) 38. Qxh1 Qxh1+ 39. Kf2 Be7 {Weighted Error Value: White=0.63/Black=0.06 (flawless)} 0-1

[Event "Lliga Catalana DH 2023"]
[Site "Catalonia"]
[Date "2023.04.15"]
[Round "11.4"]
[White "Garcia Ramos, Daniel"]
[Black "Gonzalez Perez, Arian"]
[Result "1-0"]
[ECO "B33"]
[WhiteElo "2426"]
[BlackElo "2395"]
[Annotator "TA"]
[PlyCount "75"]
[EventDate "2023.01.24"]
[EventType "team-tourn"]
[EventCountry "ESP"]
[SourceTitle "playchess.com"]
[Source "ChessBase"]
[SourceQuality "1"]
[TimeControl "40/5400+30:1800+30"]

{[%evp 32,74,31,11,40,27,45,8,10,17,15,28,119,115,114,120,97,117,113,106,160,156,141,139,148,116,133,126,138,135,121,68,239,231,224,221,360,58,29993,29994,29994,29995,29997,29996,29996]} 1. e4 {[%emt 0:00:03]} c5 {[%emt 0:00:14]} 2. Nf3 {[%emt 0:00:07][%cal Bg1f3,Bf3d4,Bd4b5][%mdl 32]} Nc6 {[%emt 0:00:38]} 3. d4 {[%emt 0:00:07]} cxd4 {[%emt 0:00:07]} 4. Nxd4 {[%emt 0:00:05]} Nf6 {[%emt 0:00:14]} 5. Nc3 {[%emt 0:00:09]} e5 {[%emt 0:00:02]} 6. Ndb5 {[%emt 0:00:22]} d6 {[%emt 0:00:07]} 7. Bg5 {[%emt 0:01:05]} a6 {[%emt 0:00:06]} 8. Na3 {[%emt 0:00:07]} b5 {[%emt 0:00:05]} 9. Bxf6 {[%emt 0:00:26]} gxf6 {[%emt 0:00:10]} 10. Nd5 {[%emt 0:00:05]} f5 {[%emt 0:00:55]} 11. g3 {[%emt 0:00:05]} Bg7 {[%emt 0:00:06]} 12. exf5 {[%emt 0:00:04]} Bxf5 {[%emt 0:00:15]} 13. Bg2 {[%emt 0:00:06]} Be6 {[%emt 0:00:16]} 14. O-O {[%emt 0:00:06]} O-O {[%emt 0:00:13]} 15. c3 {[%emt 0:00:05]} Rb8 {[%emt 0:00:08]} 16. Nc2 {[%emt 0:03:14]} a5 {[%emt 0:03:05]} 17. Qd2 {[%emt 0:10:12]} f5 {[%emt 0:06:23] B33: Sicilian: Pelikan and Sveshnikov Variations.} 18. Rad1 {[%emt 0:05:12]} Qd7 {[%emt 0:01:34]} 19. Rfe1 {[%emt 0:05:09]} (19. Nde3 $5 {[%cal Rd2d6]}) 19... Kh8 {[%emt 0:23:43] [#] The position is equal.} 20. Nf4 $1 {[%emt 0:09:54] Hoping for Bxc6. A dynamic duo of knights.} Bxa2 {[%emt 0:13:18]} (20... Bf7 21. Qxd6) 21. Nh5 {[%emt 0:00:47]} d5 {[%emt 0:17:11]} 22. Bxd5 $16 {[%emt 0:10:14]} Qxd5 {[%emt 0:05:32]} 23. Qxd5 {[%emt 0:00:30]} Bxd5 {[%emt 0:00:03]} 24. Rxd5 {[%emt 0:00:09]} Rfd8 {[%emt 0:06:40] [#] Prevents Rd7} 25. Rc5 $146 {[%emt 0:03:36] White is more active.} ({Predecessor:} 25. Red1 Rxd5 26. Rxd5 Bf8 27. f4 exf4 28. Nxf4 b4 29. cxb4 Nxb4 30. Nxb4 Bxb4 31. Rxf5 {½-½ Lutzenberger,R (2367)-Baumann,R (2242) CFriend AR-2003-Q-00007 email (1)}) 25... Rb6 {[%emt 0:01:29]} ({Black should try} 25... Rdc8) 26. Nxg7 {[%emt 0:00:29]} Kxg7 {[%emt 0:02:08]} 27. Ne3 {[%emt 0:00:16]} Rd2 {[%emt 0:05:50]} 28. Nxf5+ {[%emt 0:04:01]} Kf6 {[%emt 0:01:20]} 29. g4 {[%emt 0:10:44]} Rxb2 {[%emt 0:04:27] [#]} 30. f4 $1 {[%emt 0:00:09][%mdl 512]} exf4 {[%emt 0:05:51] [#]} 31. g5+ {[%emt 0:00:07]} (31. Nd6 $1 $16 {[%mdl 512] White threatens Rf5+ and mate.} Ne7 32. g5+ Kg6 33. Re6+ Kh5 34. g6+ (34. Rxe7 $2 {loses.} Rxd6 35. Re1 Rdd2 $19) 34... Kg4 35. gxh7 Rxd6 36. Rxd6 (36. h8=B $2 {leads to mate.} Rd1+) 36... Rb1+ 37. Kf2 Rb2+ 38. Kg1 Rb1+ 39. Kf2 Rb2+ 40. Ke1 (40. Kg1 Rb1+ $18) 40... Rxh2 41. Re6 (41. Rxb5 a4 $16) 41... Rxh7 42. Rce5) 31... Kf7 $2 {[%emt 0:00:34]} (31... Kg6 $1 $14) 32. Nd6+ $18 {[%emt 0:06:22][%mdl 1024] White has strong compensation.} Kg7 {[%emt 0:00:21]} 33. Re6 {[%emt 0:06:01] And now Nf5+ would win.} a4 {[%emt 0:01:17]} (33... b4 $142 34. Nf5+ Kf7 35. Rf6+ (35. Rcxc6 Rxc6 36. Rxc6 a4 $11) 35... Ke8) 34. Rf6 $2 {[%emt 0:10:09]} (34. Rf5 $18 {White wants to mate with Rf7+.} Rb8 35. Ne8+ {[%mdl 64] Discovered Attack} Rxe8 36. Rxe8) 34... a3 $2 {[%emt 0:01:09][%mdl 8192] [#]} (34... Kg8 $14) 35. Ne8+ $1 {[%emt 0:00:18] White mates.} Kg8 {[%emt 0:00:31] [#]} 36. Rcf5 $1 {[%emt 0:00:05][%csl Gf5][%cal Rf6f8]} h5 {[%emt 0:01:26]} 37. g6 {[%emt 0:00:10][%csl Gf5][%cal Rf6f8]} Rb1+ {[%emt 0:00:09]} 38. Kg2 {[%emt 0:00:06] An entertaining game by Garcia Ramos.   Weighted Error Value: White=0.23 (precise) /Black=0.64} 1-0

[Event "Lliga Catalana DH 2023"]
[Site "Catalonia"]
[Date "2023.04.15"]
[Round "11.4"]
[White "Plasencia Martinez, Victor"]
[Black "Ortega Serra, Marc"]
[Result "0-1"]
[ECO "C00"]
[WhiteElo "2159"]
[BlackElo "2313"]
[Annotator "TA"]
[PlyCount "84"]
[EventDate "2023.01.24"]
[EventType "team-tourn"]
[EventCountry "ESP"]
[SourceTitle "playchess.com"]
[Source "ChessBase"]
[SourceQuality "1"]
[TimeControl "40/5400+30:1800+30"]

{[%evp 13,84,7,11,0,0,0,0,-16,0,-24,-30,-27,9,16,14,0,0,0,0,0,0,0,-8,-7,22,-10,0,-27,-16,-35,-8,-58,-60,-67,-64,-84,-76,-135,-137,-161,-163,-154,-153,-160,-152,-161,-147,-314,-333,-333,-331,-407,-403,-380,-377,-525,-514,-1274,-1138,-1110,-1110,-1050,-1054,-1110,-1110,-1056,-995,-29989,-29990,-29994,-29995,-29996,-29997]} 1. e4 e6 2. d3 d5 3. Nd2 Nc6 4. Ngf3 e5 5. Be2 Nf6 6. O-O Be7 7. c3 a5 8. a4 {C00: French: Unusual White 2nd moves.} O-O 9. Re1 Re8 10. Qc2 {The position is equal.} h6 11. h3 Bc5 {[#]} 12. Bf1 $146 ({Predecessor:} 12. Nf1 Be6 13. Ng3 Qd7 14. Bd2 dxe4 15. dxe4 Bxh3 16. gxh3 Qxh3 17. Nf5 Ng4 18. Be3 Nxe3 19. fxe3 {1-0 Shchekachev,A (2470)-Binham,T (2330) Vienna op 1991 (6)}) 12... dxe4 13. dxe4 Nh5 14. Nb3 Bb6 15. Be3 Bxe3 16. Rxe3 Nf4 17. Kh2 Qf6 18. g3 (18. Rd1 {with more complications.} b6 19. Bb5 Rf8 20. Bxc6 Qxc6 21. Nxe5 Qxa4 22. Nd4) 18... Ne6 19. Rd1 Ng5 20. Nxg5 hxg5 21. Bg2 Qh6 22. Qe2 (22. Rh1 $11) 22... b6 23. Nc1 Be6 24. g4 Ne7 {[%cal Bc6e7,Be7g6,Bg6f4][%mdl 32]} 25. f3 ({White should try} 25. Bf1) 25... Qf6 26. Qf2 Rad8 27. Ree1 Ng6 28. Qe3 Nf4 {Black is more active.} 29. Bf1 g6 30. Bb5 $2 {[#] This costs White the game.} (30. b3 $17) 30... Qh8 $1 $19 31. Bf1 Qh4 {Repels Qf2} 32. Ne2 Bb3 ({Don't blunder} 32... Nd3 $2 33. Ng3 Nxe1 34. Rxe1 $19) 33. Rxd8 Rxd8 {[%cal Be8d8,Bd8d1,Bd1d2,Bd2b2][%mdl 32]} 34. Ng1 Bxa4 {White is weak on the dark squares} 35. b4 (35. Ba6 $142 b5 36. Rf1) 35... Bb3 36. bxa5 bxa5 {[#] Threatens to win with ...a4.} 37. Rb1 a4 {Strongly threatening ...Rd1.} 38. Rb2 Rd1 39. Bg2 Qe1 40. Qa7 Rd2 {Black mates.} 41. Qb8+ Kh7 42. Qxc7 Rxb2 {A cool game by Ortega Serra.   Weighted Error Value: White=0.53/Black=0.09 (flawless)} 0-1

[Event "Lliga Catalana DH 2023"]
[Site "Catalonia"]
[Date "2023.04.15"]
[Round "11.5"]
[White "Valenzuela Gomez, Fernando"]
[Black "Moskalenko, Viktor"]
[Result "1-0"]
[ECO "B07"]
[WhiteElo "2396"]
[BlackElo "2448"]
[Annotator "TA"]
[PlyCount "79"]
[EventDate "2023.01.24"]
[EventType "team-tourn"]
[EventCountry "ESP"]
[SourceTitle "playchess.com"]
[Source "ChessBase"]
[SourceQuality "1"]
[TimeControl "40/5400+30:1800+30"]

{[%evp 9,79,29,38,39,42,26,53,56,54,61,54,62,59,30,50,53,60,50,69,60,338,331,317,314,369,362,356,358,358,371,377,375,370,353,362,361,372,354,392,387,354,387,318,251,502,478,488,500,727,718,921,911,991,899,889,852,1152,1147,1772,1231,833,2145,29988,29986,29993,29990,29990,29991,29991,29991,29995,29996]} 1. e4 {[%emt 0:12:32]} d6 {[%emt 0:00:52]} 2. d4 {[%emt 0:00:37]} Nf6 {[%emt 0:00:14]} 3. Nc3 {[%emt 0:00:22]} g6 {[%emt 0:00:06]} 4. Be3 {[%emt 0:00:17]} a6 {[%emt 0:04:56]} 5. h4 {[%emt 0:02:47]} h5 {[%emt 0:03:32] [#]} 6. Nh3 $146 {[%emt 0:02:45] B07: Pirc Defence: Miscellaneous Systems.} ({Predecessor:} 6. f3 b5 7. Qd2 Bg7 8. O-O-O c6 9. Kb1 Qc7 10. a3 O-O 11. Nh3 Bxh3 12. Rxh3 a5 {0-1 Soors,S (2407)-Van der Werf,M (2405) Leiden Noteboom Memorial 75th 2015 (4)}) 6... Bxh3 {[%emt 0:02:19]} 7. Rxh3 {[%emt 0:00:02]} Nbd7 {[%emt 0:03:49]} 8. Qe2 {[%emt 0:01:28] White is slightly better.} c6 {[%emt 0:23:08]} 9. O-O-O {[%emt 0:01:46][%cal Oe4e5] Strongly threatening e5!} Qc7 {[%emt 0:05:25]} 10. f3 {[%emt 0:08:18][%cal Bf2f3,Bf3f4][%mdl 32]} b5 {[%emt 0:01:20]} 11. Bg1 {[%emt 0:19:25]} e5 {[%emt 0:05:10]} 12. g4 {[%emt 0:01:04][%cal Bg2g4,Bg4g5][%mdl 32]} Nb6 {[%emt 0:00:42]} 13. g5 {[%emt 0:01:14]} Nfd7 {[%emt 0:06:10] [#]} 14. f4 $1 $36 {[%emt 0:02:29][%mdl 2048] White is pushing.} Bg7 $2 {[%emt 0:05:40][%mdl 8192] Black cannot hold the game after this.} ({Black should try} 14... b4 $14) (14... exf4 15. Qf3) 15. dxe5 $18 {[%emt 0:02:09]} dxe5 {[%emt 0:00:03]} 16. f5 {[%emt 0:00:16]} Bf8 {[%emt 0:09:24]} 17. Rf3 {[%emt 0:04:23]} gxf5 {[%emt 0:13:33]} 18. exf5 {[%emt 0:09:41]} (18. Rxf5 Be7 19. Bh3 Rh7 $18) 18... Bc5 {[%emt 0:01:08]} 19. Bh2 {[%emt 0:09:03]} O-O-O {[%emt 0:03:17]} 20. Ne4 {[%emt 0:00:33]} Rhe8 {[%emt 0:00:40]} 21. Rc3 {[%emt 0:04:44]} (21. g6 f6 22. Rb3 Rg8 23. Qxh5 Rh8 $18) 21... Bb4 {[%emt 0:02:06]} 22. Rcd3 {[%emt 0:01:43]} Nd5 {[%emt 0:00:30]} 23. a3 {[%emt 0:02:14]} ({Less strong is} 23. Qxh5 Nc5 $16) 23... Bf8 {[%emt 0:00:22]} 24. Qxh5 {[%emt 0:00:59]} Nc5 {[%emt 0:00:43]} 25. Nxc5 {[%emt 0:03:38]} Bxc5 {[%emt 0:00:05]} 26. Qe2 {[%emt 0:01:45]} b4 $2 {[%emt 0:00:22]} (26... Qb6 27. g6 (27. Bxe5 Be3+ 28. Kb1 Rxe5 $11) 27... e4) 27. axb4 {[%emt 0:01:24]} Bxb4 {[%emt 0:00:59]} 28. Rb3 {[%emt 0:01:14]} a5 {[%emt 0:01:27]} 29. Qa6+ {[%emt 0:00:08]} Kb8 {[%emt 0:01:59]} 30. c3 {[%emt 0:03:06][%cal Bc2c3,Bc3b4][%mdl 96] Pin} Ne3 {[%emt 0:01:49]} 31. Re1 {[%emt 0:00:26]} Nxf1 {[%emt 0:00:21]} 32. Rxf1 {[%emt 0:00:39]} Qd6 {[%emt 0:02:15]} 33. cxb4 {[%emt 0:00:20]} a4 {[%emt 0:00:22]} 34. Rc3 {[%emt 0:01:35]} Qd2+ {[%emt 0:00:49]} 35. Kb1 {[%emt 0:00:02] Qb6+ would kill now.} Rd6 {[%emt 0:00:03] [#]} 36. Rfc1 $1 {[%emt 0:01:52] White mates.} Qxh2 {[%emt 0:00:22]} (36... Re7 37. Bxe5) 37. Rxc6 {[%emt 0:00:50]} Rxc6 {[%emt 0:00:26]} 38. Qb5+ {[%emt 0:00:09]} Ka7 {[%emt 0:00:24]} 39. Qxa4+ {[%emt 0:00:30]} Ra6 {[%emt 0:02:02]} 40. Qd7+ {[%emt 0:00:06] Artfully played by Valenzuela Gomez.   Weighted Error Value: White=0.04 (flawless) /Black=0.54} 1-0

[Event "Lliga Catalana DH 2023"]
[Site "Catalonia"]
[Date "2023.04.15"]
[Round "11.5"]
[White "Saguillo Gonzalez, Oriol"]
[Black "Avila Jimenez, Xavier"]
[Result "0-1"]
[WhiteElo "2168"]
[BlackElo "2142"]
[Annotator "TA"]
[PlyCount "25"]
[EventDate "2023.01.24"]
[EventType "team-tourn"]
[EventCountry "ESP"]
[SourceTitle "playchess.com"]
[Source "ChessBase"]
[SourceQuality "1"]
[TimeControl "40/5400+30:1800+30"]

{[%evp 9,12,10,48,53,47]} 1. e4 d5 2. exd5 Qxd5 3. Nc3 Qd6 4. g3 Nf6 5. Bg2 c6 6. d4 {B01: Scandinavian Defence.} Bf5 {[%mdl 32768] [#]  Loss on time!?} {Predecessor:} 7. Nf3 $146 Nbd7 8. O-O e6 9. Nh4 Bg6 10. Bf4 Qb4 11. a3 Qb6 12. Nxg6 hxg6 13. Qd3 {½-½ Leko,P (2737)-Karpov,A (2619) Kiev rapid 2013 (3)} 0-1